[Event "1st Bangalore GM-Open-A 2024"]
[Site "Bangalore"]
[Date "2024.01.21"]
[Round "6.11"]
[White "Das, Sayantan"]
[Black "Tologon tegin, Semetei"]
[Result "0-1"]
[ECO "B33"]
[WhiteElo "2514"]
[BlackElo "2384"]
[Annotator "TA"]
[PlyCount "72"]
[EventDate "2024.01.20"]
[EventType "swiss"]
[EventCountry "IND"]
[SourceTitle "playchess.com"]
[Source "ChessBase"]
[SourceQuality "1"]
[TimeControl "5400+30"]

{[%evp 17,72,33,46,24,31,48,33,26,44,18,88,78,89,104,136,135,130,90,106,105,108,17,21,28,30,43,51,0,2,6,9,22,26,33,81,-21,-8,0,47,-35,38,20,65,55,34,-52,-52,-510,-441,-1281,-1239,-1776,-1708,-29996,-29997,-29997,-29998]} 1. e4 {[%emt 0:00:08]} c5 {[%emt 0:01:56]} 2. Nf3 {[%emt 0:00:12]} Nc6 {[%emt 0:00:04]} 3. d4 {[%emt 0:00:24]} cxd4 {[%emt 0:00:03]} 4. Nxd4 {[%emt 0:00:05]} Qb6 {[%emt 0:00:03]} 5. Nb3 {[%emt 0:00:36]} Nf6 {[%emt 0:00:05]} 6. Nc3 {[%emt 0:01:11]} e6 {[%emt 0:00:04]} 7. Bd3 {[%emt 0:00:42]} a6 {[%emt 0:00:41]} 8. Be3 {[%emt 0:00:47]} Qc7 {[%emt 0:00:01]} 9. f4 {[%emt 0:00:40]} d6 {[%emt 0:00:11]} 10. Qe2 {[%emt 0:00:24]} b5 {[%emt 0:01:09]} 11. O-O-O {[%emt 0:02:59]} Be7 {[%emt 0:04:25]} 12. g4 {[%emt 0:01:31] White is slightly better.} Nd7 {[%emt 0:00:42]} 13. g5 {[%emt 0:10:29]} Nb6 {[%emt 0:07:21]} (13... Nb4 $11) 14. Qf2 $16 {[%emt 0:05:20]} Rb8 {[%emt 0:08:28]} 15. Kb1 {[%emt 0:01:46]} b4 {[%emt 0:06:28]} 16. Ne2 {[%emt 0:00:57]} a5 {[%emt 0:06:55]} 17. h4 {[%emt 0:14:53]} a4 {[%emt 0:01:51]} 18. Nbd4 {[%emt 0:01:24]} Nxd4 {[%emt 0:00:05]} 19. Bxd4 {[%emt 0:03:12]} (19. Nxd4 $16 {Hoping for Nb5.} Nc4 20. Bc1) 19... e5 $1 $11 {[%emt 0:00:22]} 20. Be3 {[%emt 0:09:46]} Nc4 {[%emt 0:08:34]} 21. f5 {[%emt 0:07:01]} Ba6 {[%emt 0:28:36]} 22. Rc1 {[%emt 0:07:41]} ({White should try} 22. f6 $14 gxf6 23. gxf6) 22... f6 {[%emt 0:04:47]} 23. h5 {[%emt 0:04:42][%cal Bh4h5,Bh5h6][%mdl 32] White wants to play h6.} O-O {[%emt 0:00:10]} 24. h6 {[%emt 0:05:29]} g6 {[%emt 0:00:04]} 25. gxf6 {[%emt 0:05:27]} Rxf6 {[%emt 0:00:30]} (25... Bxf6 $14 26. Rhg1 (26. fxg6 hxg6 27. Rcg1 Qf7 $14) 26... Qf7) 26. Qg3 {[%emt 0:00:29]} ({Better is} 26. Bg5 $16 Rff8 27. Qg3 (27. f6 b3 $11) 27... Bxg5 28. Qxg5) 26... Kh8 {[%emt 0:04:02]} 27. Rhg1 {[%emt 0:02:49]} Rg8 {[%emt 0:08:32]} (27... Nxe3 $11 28. Qxe3 (28. Bxa6 Qc5 $11) 28... Qc5) 28. Qh3 {[%emt 0:03:47]} (28. Bg5 $14) 28... Qb7 {[%emt 0:00:57]} (28... Nxe3 $15 29. Qxe3 (29. Bxa6 Qa7 $15) 29... Qc5) 29. Bg5 $14 {[%emt 0:03:17]} Rff8 {[%emt 0:00:06] [#] Strongly threatening ...Bxg5.} 30. Bxe7 {[%emt 0:03:32]} Qxe7 {[%emt 0:00:03]} 31. Bxc4 {[%emt 0:00:26]} (31. Ka1 $14) 31... Bxc4 $15 {[%emt 0:00:04]} 32. Ng3 {[%emt 0:01:43][%mdl 8192] Now White is beyond hope.} (32. Qf3 $15) 32... Qa7 {[%emt 0:01:39] Threatens to win with ...a3.} 33. Rcd1 {[%emt 0:01:21]} (33. Rgf1 $142 Bxf1 34. Qxf1) 33... a3 $19 {[%emt 0:01:43]} ({Don't go for} 33... b3 $2 34. Qh2 $19) 34. b3 {[%emt 0:00:15] [#]} Qe3 $1 {[%emt 0:00:09][%cal Oe3c3] ( -> ...Qc3!)} 35. bxc4 {[%emt 0:00:29]} (35. fxg6 Rxg6) 35... Qc3 {[%emt 0:00:03][%csl Ga3][%cal Rc3b2]} 36. Kc1 {[%emt 0:00:06]} b3 $1 {[%emt 0:00:07][%mdl 64] Promotion.   Weighted Error Value: White=0.91/Black=0.17 (very precise)} 0-1

[Event "1st Bangalore GM-Open-A 2024"]
[Site "Bangalore"]
[Date "2024.01.21"]
[Round "6.12"]
[White "Thilakarathne, G M H"]
[Black "Shyam, Sundar M."]
[Result "0-1"]
[ECO "C54"]
[WhiteElo "2391"]
[BlackElo "2497"]
[Annotator "RC"]
[PlyCount "102"]
[EventDate "2024.01.20"]
[EventType "swiss"]
[EventCountry "IND"]
[SourceTitle "playchess.com"]
[Source "ChessBase"]
[SourceQuality "1"]
[TimeControl "5400+30"]

1. e4 {[%emt 0:01:23]} e5 {[%emt 0:00:21]} 2. Nf3 {[%emt 0:00:21]} Nc6 {[%emt 0:00:05]} 3. Bc4 {[%emt 0:00:21]} Bc5 {[%emt 0:00:42]} 4. O-O {[%emt 0:00:17]} Nf6 {[%emt 0:00:12]} 5. d3 {[%emt 0:00:20]} d6 {[%emt 0:00:19]} 6. c3 {[%emt 0:00:20]} a6 {[%emt 0:05:29]} 7. a4 {[%emt 0:06:58]} O-O {[%emt 0:02:10]} 8. Re1 {[%emt 0:01:33]} Ba7 {[%emt 0:00:46]} 9. Nbd2 {[%emt 0:01:10]} Ng4 {[%emt 0:00:34]} 10. Re2 {[%emt 0:05:14]} Kh8 {[%emt 0:00:05]} 11. h3 {[%emt 0:10:38]} Nh6 {[%emt 0:00:05]} 12. Nf1 {[%emt 0:03:27]} f5 {[%emt 0:00:04]} 13. Bg5 {[%emt 0:08:58]} Qe8 {[%emt 0:02:34]} 14. Bxh6 {[%emt 0:10:32]} gxh6 {[%emt 0:00:02]} 15. d4 {[%emt 0:00:22]} f4 {[%emt 0:17:39]} 16. N1h2 {[%emt 0:17:41]} Qe7 {[%emt 0:12:09]} 17. Kf1 {[%emt 0:08:04]} Bd7 {[%emt 0:05:47]} 18. dxe5 {[%emt 0:06:03]} dxe5 {[%emt 0:03:35]} 19. Rd2 {[%emt 0:02:34]} Rad8 {[%emt 0:04:34]} 20. b4 {[%emt 0:01:24]} Bc8 {[%emt 0:04:19]} 21. Raa2 {[%emt 0:01:10]} Rd6 {[%emt 0:01:04]} 22. Ne1 {[%emt 0:06:48]} Rfd8 {[%emt 0:11:53]} 23. Nhf3 {[%emt 0:00:25]} a5 {[%emt 0:09:15]} 24. b5 {[%emt 0:00:17]} Nb8 {[%emt 0:00:08]} 25. Nd3 {[%emt 0:00:29]} Nd7 {[%emt 0:00:11]} 26. Rac2 {[%emt 0:03:39]} Qf6 {[%emt 0:00:32]} 27. Bb3 {[%emt 0:00:43]} Re8 {[%emt 0:00:19]} 28. Qe2 {[%emt 0:00:48]} Kg7 {[%emt 0:03:18]} 29. Nh2 {[%emt 0:01:06]} Nc5 {[%emt 0:00:26]} 30. Nxc5 {[%emt 0:00:07]} Bxc5 {[%emt 0:00:02]} 31. Qh5 {[%emt 0:00:30]} Qg6 {[%emt 0:00:55]} 32. Qf3 {[%emt 0:01:05]} Red8 {[%emt 0:01:22]} 33. Ke2 {[%emt 0:00:34]} h5 {[%emt 0:01:40]} 34. Bc4 {[%emt 0:01:12]} b6 {[%emt 0:00:53]} 35. Bd5 {[%emt 0:00:11]} Rxd5 {[%emt 0:00:29]} 36. exd5 {[%emt 0:00:34]} Bf5 {[%emt 0:00:03]} 37. Kd1 {[%emt 0:00:19]} Be4 {[%emt 0:00:23]} 38. Qe2 {[%emt 0:00:08]} Bxc2+ {[%emt 0:02:13]} 39. Rxc2 {[%emt 0:00:01]} Rxd5+ {[%emt 0:00:02]} 40. Kc1 {[%emt 0:00:16]} e4 {[%emt 0:01:17]} 41. Rd2 {[%emt 0:00:55]} Ba3+ {[%emt 0:00:21]} 42. Kc2 {[%emt 0:00:38]} e3+ {[%emt 0:00:03]} 43. Rd3 {[%emt 0:00:06]} exf2 {[%emt 0:04:57]} 44. c4 {[%emt 0:00:53]} Rxd3 {[%emt 0:00:52]} 45. Qxd3 {[%emt 0:00:01]} Bb4 {[%emt 0:01:17]} 46. Nf1 {[%emt 0:00:27]} Kf6 {[%emt 0:00:13]} 47. g3 {[%emt 0:01:31]} fxg3 {[%emt 0:00:41]} 48. Nxg3 {[%emt 0:00:09]} Ke5 {[%emt 0:00:10]} 49. c5 {[%emt 0:00:34]} bxc5 {[%emt 0:00:13]} 50. b6 {[%emt 0:00:37]} cxb6 {[%emt 0:00:05]} 51. h4 {[%emt 0:00:05]} c4 {[%emt 0:00:14]} 0-1

[Event "1st Bangalore GM-Open-A 2024"]
[Site "Bangalore"]
[Date "2024.01.21"]
[Round "6.13"]
[White "Aswath, S."]
[Black "Chanda, Sandipan"]
[Result "0-1"]
[ECO "B81"]
[WhiteElo "2369"]
[BlackElo "2486"]
[Annotator "RC"]
[PlyCount "82"]
[EventDate "2024.01.20"]
[EventType "swiss"]
[EventCountry "IND"]
[SourceTitle "playchess.com"]
[Source "ChessBase"]
[SourceQuality "1"]
[TimeControl "5400+30"]

1. e4 {[%emt 0:00:36]} c5 {[%emt 0:00:25]} 2. Nf3 {[%emt 0:00:10]} d6 {[%emt 0:00:06]} 3. d4 {[%emt 0:00:05]} cxd4 {[%emt 0:00:05]} 4. Nxd4 {[%emt 0:00:06]} Nf6 {[%emt 0:00:05]} 5. Nc3 {[%emt 0:00:05]} a6 {[%emt 0:00:07]} 6. h3 {[%emt 0:00:04]} e6 {[%emt 0:00:14]} 7. g4 {[%emt 0:00:06]} h6 {[%emt 0:00:35]} 8. Bg2 {[%emt 0:00:19]} Be7 {[%emt 0:00:28]} 9. Be3 {[%emt 0:00:26]} Nc6 {[%emt 0:00:52]} 10. f4 {[%emt 0:00:44]} Nd7 {[%emt 0:04:30]} 11. O-O {[%emt 0:04:14]} O-O {[%emt 0:00:56]} 12. Nf3 {[%emt 0:03:54]} b5 {[%emt 0:01:06]} 13. a3 {[%emt 0:01:15]} Bb7 {[%emt 0:00:31]} 14. Qe2 {[%emt 0:00:22]} Na5 {[%emt 0:02:30]} 15. Rae1 {[%emt 0:12:03]} Nc4 {[%emt 0:01:20]} 16. Bc1 {[%emt 0:00:17]} Rc8 {[%emt 0:02:09]} 17. Nd1 {[%emt 0:02:22]} Nf6 {[%emt 0:05:44]} 18. Nf2 {[%emt 0:03:29]} d5 {[%emt 0:00:26]} 19. e5 {[%emt 0:08:37]} Ne4 {[%emt 0:02:44]} 20. Kh2 {[%emt 0:00:23]} Qc7 {[%emt 0:15:13]} 21. Nd3 {[%emt 0:02:25]} f6 {[%emt 0:02:48]} 22. exf6 {[%emt 0:09:57]} Rxf6 {[%emt 0:02:16]} 23. Nd4 {[%emt 0:11:59]} Bd6 {[%emt 0:01:11]} 24. Rf3 {[%emt 0:04:06]} g5 {[%emt 0:01:19]} 25. b3 {[%emt 0:19:34]} Nxa3 {[%emt 0:04:48]} 26. Bb2 {[%emt 0:02:13]} gxf4 {[%emt 0:04:52]} 27. Nc6 {[%emt 0:06:42]} Rff8 {[%emt 0:10:44]} 28. Ncb4 {[%emt 0:01:26]} Nc4 {[%emt 0:04:00]} 29. bxc4 {[%emt 0:01:30]} bxc4 {[%emt 0:00:13]} 30. Rc1 {[%emt 0:00:10]} Qb6 {[%emt 0:00:37]} 31. Qe1 {[%emt 0:04:06]} cxd3 {[%emt 0:04:02]} 32. Nxd3 {[%emt 0:00:06]} Ng5 {[%emt 0:03:42]} 33. Qh4 {[%emt 0:01:24]} Kh7 {[%emt 0:00:15]} 34. Kh1 {[%emt 0:00:36]} d4 {[%emt 0:01:08]} 35. Rcf1 {[%emt 0:01:21]} e5 {[%emt 0:00:51]} 36. Qe1 {[%emt 0:00:44]} Nxf3 {[%emt 0:00:33]} 37. Rxf3 {[%emt 0:00:13]} e4 {[%emt 0:01:12]} 38. Rxf4 {[%emt 0:00:13]} Bxf4 {[%emt 0:00:56]} 39. Bxe4+ {[%emt 0:00:11]} Kg8 {[%emt 0:00:41]} 40. Bxd4 {[%emt 0:00:56]} Bxe4+ {[%emt 0:00:20]} 41. Qxe4 {[%emt 0:00:08]} Qc6 {[%emt 0:00:05]} 0-1

[Event "1st Bangalore GM-Open-A 2024"]
[Site "Bangalore"]
[Date "2024.01.21"]
[Round "6.14"]
[White "Srihari L R"]
[Black "Jain Kashish Manoj"]
[Result "1-0"]
[ECO "A11"]
[WhiteElo "2469"]
[BlackElo "2334"]
[Annotator "RC"]
[PlyCount "77"]
[EventDate "2024.01.20"]
[EventType "swiss"]
[EventCountry "IND"]
[SourceTitle "playchess.com"]
[Source "ChessBase"]
[SourceQuality "1"]
[TimeControl "5400+30"]

1. c4 {[%emt 0:00:50]} Nf6 {[%emt 0:03:27]} 2. Nf3 {[%emt 0:00:33]} c6 {[%emt 0:00:14]} 3. g3 {[%emt 0:02:09]} d5 {[%emt 0:00:09]} 4. Bg2 {[%emt 0:00:12]} Bg4 {[%emt 0:14:48]} 5. O-O {[%emt 0:11:18]} e6 {[%emt 0:00:44]} 6. Ne5 {[%emt 0:12:39]} Bh5 {[%emt 0:04:17]} 7. cxd5 {[%emt 0:01:37]} exd5 {[%emt 0:03:32]} 8. d4 {[%emt 0:01:03]} Nbd7 {[%emt 0:02:33]} 9. Nc3 {[%emt 0:04:19]} Qb6 {[%emt 0:12:32]} 10. h3 {[%emt 0:05:44]} Rd8 {[%emt 0:23:19]} 11. g4 {[%emt 0:12:15]} Bg6 {[%emt 0:00:12]} 12. Nxg6 {[%emt 0:00:57]} hxg6 {[%emt 0:00:25]} 13. g5 {[%emt 0:00:18]} Nh5 {[%emt 0:01:58]} 14. e4 {[%emt 0:03:14]} dxe4 {[%emt 0:01:05]} 15. Nxe4 {[%emt 0:07:34]} Be7 {[%emt 0:02:40]} 16. d5 {[%emt 0:05:34]} Nc5 {[%emt 0:04:36]} 17. Nc3 {[%emt 0:08:44]} O-O {[%emt 0:01:03]} 18. Qf3 {[%emt 0:00:15]} Bd6 {[%emt 0:08:21]} 19. dxc6 {[%emt 0:08:18]} bxc6 {[%emt 0:00:07]} 20. Qxc6 {[%emt 0:00:26]} Qxc6 {[%emt 0:00:17]} 21. Bxc6 {[%emt 0:00:06]} Nd3 {[%emt 0:00:05]} 22. Be3 {[%emt 0:03:07]} Nxb2 {[%emt 0:00:37]} 23. Ne4 {[%emt 0:01:48]} Ba3 {[%emt 0:09:42]} 24. Rac1 {[%emt 0:01:46]} Nd3 {[%emt 0:00:51]} 25. Rc3 {[%emt 0:00:11]} Bb2 {[%emt 0:02:23]} 26. Rb3 {[%emt 0:00:41]} Be5 {[%emt 0:01:05]} 27. Bb5 {[%emt 0:02:46]} Nhf4 {[%emt 0:02:22]} 28. Rd1 {[%emt 0:00:46]} Nxh3+ {[%emt 0:00:26]} 29. Kf1 {[%emt 0:01:17]} Ndf4 {[%emt 0:00:02]} 30. Re1 {[%emt 0:02:54]} Bd4 {[%emt 0:01:06]} 31. Bc1 {[%emt 0:01:58]} Rd5 {[%emt 0:00:26]} 32. Bc6 {[%emt 0:00:35]} Re5 {[%emt 0:00:33]} 33. Bd7 {[%emt 0:00:09]} Nxg5 {[%emt 0:00:31]} 34. Nxg5 {[%emt 0:00:22]} Rxg5 {[%emt 0:00:30]} 35. Bxf4 {[%emt 0:00:01]} Rd5 {[%emt 0:00:29]} 36. Rb7 {[%emt 0:00:28]} Bb6 {[%emt 0:00:31]} 37. Be3 {[%emt 0:00:20]} Bxe3 {[%emt 0:00:29]} 38. Rxe3 {[%emt 0:00:01]} Rd8 {[%emt 0:00:07]} 39. Re8+ {[%emt 0:00:42]} 1-0

[Event "1st Bangalore GM-Open-A 2024"]
[Site "Bangalore"]
[Date "2024.01.21"]
[Round "6.15"]
[White "Ayush Sharma"]
[Black "Muthaiah AL"]
[Result "1/2-1/2"]
[ECO "C42"]
[WhiteElo "2378"]
[BlackElo "2464"]
[Annotator "RC"]
[PlyCount "60"]
[EventDate "2024.01.20"]
[EventType "swiss"]
[EventCountry "IND"]
[SourceTitle "playchess.com"]
[Source "ChessBase"]
[SourceQuality "1"]
[TimeControl "5400+30"]

1. e4 {[%emt 0:00:06]} e5 {[%emt 0:01:08]} 2. Nf3 {[%emt 0:00:07]} Nf6 {[%emt 0:00:25]} 3. Nxe5 {[%emt 0:00:43]} d6 {[%emt 0:00:30]} 4. Nf3 {[%emt 0:00:05]} Nxe4 {[%emt 0:00:31]} 5. c4 {[%emt 0:00:38]} Be7 {[%emt 0:04:01]} 6. Nc3 {[%emt 0:00:25]} Nxc3 {[%emt 0:04:03]} 7. dxc3 {[%emt 0:00:12]} O-O {[%emt 0:00:39]} 8. Be3 {[%emt 0:00:11]} Bf5 {[%emt 0:04:11]} 9. Bd3 {[%emt 0:10:59]} Qd7 {[%emt 0:03:00]} 10. Bxf5 {[%emt 0:01:59]} Qxf5 {[%emt 0:00:38]} 11. Nd4 {[%emt 0:00:03]} Qd7 {[%emt 0:06:57]} 12. Qc2 {[%emt 0:02:12]} Nc6 {[%emt 0:02:35]} 13. Nf5 {[%emt 0:01:25]} Rfe8 {[%emt 0:03:38]} 14. O-O-O {[%emt 0:00:28]} Bf8 {[%emt 0:01:19]} 15. h4 {[%emt 0:04:30]} h5 {[%emt 0:12:55]} 16. Bf4 {[%emt 0:17:44]} Ne5 {[%emt 0:09:18]} 17. Ne3 {[%emt 0:00:35]} Ng4 {[%emt 0:01:50]} 18. g3 {[%emt 0:14:23]} Nxe3 {[%emt 0:07:25]} 19. Bxe3 {[%emt 0:00:02]} g6 {[%emt 0:00:19]} 20. Qb3 {[%emt 0:02:18]} b6 {[%emt 0:01:52]} 21. Qb5 {[%emt 0:03:52]} Qxb5 {[%emt 0:12:39]} 22. cxb5 {[%emt 0:00:18]} a6 {[%emt 0:00:11]} 23. bxa6 {[%emt 0:00:09]} Rxa6 {[%emt 0:00:07]} 24. a3 {[%emt 0:00:05]} f5 {[%emt 0:00:14]} 25. Kc2 {[%emt 0:00:14]} Kf7 {[%emt 0:00:08]} 26. Rhe1 {[%emt 0:00:07]} Bg7 {[%emt 0:00:13]} 27. Bg5 {[%emt 0:00:20]} Raa8 {[%emt 0:00:26]} 28. c4 {[%emt 0:00:33]} Rxe1 {[%emt 0:00:24]} 29. Rxe1 {[%emt 0:00:04]} Re8 {[%emt 0:00:06]} 30. Rxe8 {[%emt 0:00:05]} Kxe8 {[%emt 0:00:07]} 1/2-1/2

[Event "1st Bangalore GM-Open-A 2024"]
[Site "Bangalore"]
[Date "2024.01.21"]
[Round "6.16"]
[White "Stany, G.A."]
[Black "Saravana, Krishnan P."]
[Result "0-1"]
[ECO "C66"]
[WhiteElo "2459"]
[BlackElo "2269"]
[Annotator "RC"]
[PlyCount "112"]
[EventDate "2024.01.20"]
[EventType "swiss"]
[EventCountry "IND"]
[SourceTitle "playchess.com"]
[Source "ChessBase"]
[SourceQuality "1"]
[TimeControl "5400+30"]

1. e4 {[%emt 0:00:08]} e5 {[%emt 0:00:27]} 2. Nf3 {[%emt 0:00:35]} Nc6 {[%emt 0:00:50]} 3. Bb5 {[%emt 0:00:40]} Nf6 {[%emt 0:02:05]} 4. d3 {[%emt 0:02:53]} d6 {[%emt 0:06:05]} 5. O-O {[%emt 0:03:19]} g6 {[%emt 0:01:51]} 6. Re1 {[%emt 0:08:29]} Bg7 {[%emt 0:06:02]} 7. c3 {[%emt 0:00:12]} O-O {[%emt 0:01:18]} 8. d4 {[%emt 0:15:54]} Bd7 {[%emt 0:04:35]} 9. Ba4 {[%emt 0:00:38]} Nh5 {[%emt 0:05:09]} 10. d5 {[%emt 0:16:47]} Ne7 {[%emt 0:01:25]} 11. Bxd7 {[%emt 0:05:29]} Qxd7 {[%emt 0:00:07]} 12. c4 {[%emt 0:00:02]} h6 {[%emt 0:03:54]} 13. Nc3 {[%emt 0:01:02]} f5 {[%emt 0:03:59]} 14. exf5 {[%emt 0:00:56]} Nxf5 {[%emt 0:08:16]} 15. Be3 {[%emt 0:11:10]} Nxe3 {[%emt 0:11:33]} 16. fxe3 {[%emt 0:09:57]} Qf5 {[%emt 0:12:15]} 17. Nd2 {[%emt 0:01:55]} Qf2+ {[%emt 0:04:03]} 18. Kh1 {[%emt 0:00:07]} e4 {[%emt 0:01:53]} 19. Ncxe4 {[%emt 0:08:49]} Qh4 {[%emt 0:01:09]} 20. h3 {[%emt 0:01:45]} Bxb2 {[%emt 0:04:28]} 21. Rb1 {[%emt 0:00:06]} Be5 {[%emt 0:00:40]} 22. Qg4 {[%emt 0:00:52]} Ng3+ {[%emt 0:02:56]} 23. Nxg3 {[%emt 0:03:02]} Qxg3 {[%emt 0:00:51]} 24. Qxg3 {[%emt 0:00:43]} Bxg3 {[%emt 0:00:05]} 25. Rf1 {[%emt 0:00:48]} b6 {[%emt 0:00:16]} 26. Ne4 {[%emt 0:01:02]} Be5 {[%emt 0:00:58]} 27. g4 {[%emt 0:00:10]} Rf5 {[%emt 0:01:51]} 28. Rf2 Rxf2 {[%emt 0:00:31]} 29. Re1 {[%emt 0:00:04]} Rf1+ 30. Rxf1 {[%emt 0:00:59]} Re8 {[%emt 0:00:34]} 31. Re1 {[%emt 0:03:25]} Bb2 {[%emt 0:03:26]} 32. Ng3 {[%emt 0:01:24]} Bf6 {[%emt 0:03:31]} 33. Kg2 {[%emt 0:01:00]} Bh4 {[%emt 0:00:33]} 34. e4 {[%emt 0:00:08]} Kg7 {[%emt 0:00:25]} 35. Re2 {[%emt 0:02:50]} Kf6 {[%emt 0:02:32]} 36. Rf2+ {[%emt 0:00:04]} Ke5 {[%emt 0:02:06]} 37. Rf7 {[%emt 0:00:05]} Re7 {[%emt 0:00:15]} 38. Rxe7+ {[%emt 0:00:36]} Bxe7 {[%emt 0:00:05]} 39. Kf3 {[%emt 0:00:02]} Kd4 {[%emt 0:04:27]} 40. Ne2+ {[%emt 0:00:08]} Kxc4 {[%emt 0:00:06]} 41. Nf4 {[%emt 0:00:03]} g5 {[%emt 0:00:48]} 42. Ne6 {[%emt 0:00:04]} b5 {[%emt 0:00:46]} 43. Nxc7 {[%emt 0:00:05]} b4 {[%emt 0:01:02]} 44. e5 {[%emt 0:00:09]} dxe5 {[%emt 0:01:22]} 45. Ke4 {[%emt 0:00:05]} a5 {[%emt 0:00:41]} 46. Kxe5 {[%emt 0:01:58]} a4 {[%emt 0:00:08]} 47. Ke6 {[%emt 0:00:27]} Bf8 {[%emt 0:00:38]} 48. Ne8 {[%emt 0:00:39]} b3 {[%emt 0:00:41]} 49. d6 {[%emt 0:00:03]} Bxd6 {[%emt 0:00:42]} 50. Nxd6+ {[%emt 0:00:04]} Kd3 {[%emt 0:00:23]} 51. axb3 {[%emt 0:00:20]} a3 {[%emt 0:00:13]} 52. b4 {[%emt 0:00:06]} a2 {[%emt 0:00:21]} 53. b5 {[%emt 0:00:03]} a1=Q {[%emt 0:00:10]} 54. b6 {[%emt 0:00:04]} Qb2 {[%emt 0:00:48]} 55. b7 {[%emt 0:00:09]} Qb6 {[%emt 0:00:23]} 56. Kd7 {[%emt 0:00:40]} Ke2 {[%emt 0:00:18]} 0-1

[Event "1st Bangalore GM-Open-A 2024"]
[Site "Bangalore"]
[Date "2024.01.21"]
[Round "6.18"]
[White "Sammed Jaykumar, Shete"]
[Black "Aakash Sharadchandra, Dalvi"]
[Result "1-0"]
[ECO "B93"]
[WhiteElo "2441"]
[BlackElo "2180"]
[Annotator "RC"]
[PlyCount "55"]
[EventDate "2024.01.20"]
[EventType "swiss"]
[EventCountry "IND"]
[SourceTitle "playchess.com"]
[Source "ChessBase"]
[SourceQuality "1"]
[TimeControl "5400+30"]

1. e4 {[%emt 0:00:16]} c5 {[%emt 0:00:06]} 2. Nf3 {[%emt 0:00:04]} d6 {[%emt 0:00:08]} 3. d4 {[%emt 0:00:20]} cxd4 {[%emt 0:00:05]} 4. Nxd4 {[%emt 0:00:04]} Nf6 {[%emt 0:00:05]} 5. Nc3 {[%emt 0:00:04]} a6 {[%emt 0:00:04]} 6. f4 {[%emt 0:00:43]} e5 {[%emt 0:00:06]} 7. Nf3 {[%emt 0:00:05]} Nbd7 {[%emt 0:00:04]} 8. a4 {[%emt 0:00:29]} Be7 {[%emt 0:00:08]} 9. Bc4 {[%emt 0:01:37]} Qa5 {[%emt 0:00:48]} 10. Qe2 {[%emt 0:00:51]} b5 {[%emt 0:04:56]} 11. Ba2 {[%emt 0:00:45]} bxa4 {[%emt 0:09:47]} 12. Bd2 {[%emt 0:22:50]} O-O {[%emt 0:06:04]} 13. g4 {[%emt 0:02:25]} exf4 {[%emt 0:13:01]} 14. g5 {[%emt 0:05:39]} Ng4 {[%emt 0:00:46]} 15. Nd5 {[%emt 0:00:36]} Qd8 {[%emt 0:00:04]} 16. Bxf4 {[%emt 0:01:02]} a3 {[%emt 0:06:45]} 17. bxa3 {[%emt 0:03:04]} Nde5 {[%emt 0:02:31]} 18. h4 {[%emt 0:03:00]} Nxf3+ {[%emt 0:05:32]} 19. Qxf3 {[%emt 0:00:10]} Be6 {[%emt 0:00:30]} 20. O-O-O {[%emt 0:06:57]} Kh8 {[%emt 0:12:44]} 21. Nxe7 {[%emt 0:01:00]} Bxa2 {[%emt 0:00:24]} 22. Bxd6 {[%emt 0:00:34]} Re8 {[%emt 0:06:39]} 23. Qxg4 {[%emt 0:02:44]} Rxe7 {[%emt 0:00:07]} 24. Bxe7 {[%emt 0:00:14]} Qxe7 {[%emt 0:00:03]} 25. Rd3 {[%emt 0:00:12]} Bc4 {[%emt 0:01:56]} 26. Qd7 {[%emt 0:01:52]} Qf8 {[%emt 0:00:08]} 27. Rc3 {[%emt 0:00:14]} Be6 {[%emt 0:00:43]} 28. Qd4 {[%emt 0:00:19]} 1-0

[Event "1st Bangalore GM-Open-A 2024"]
[Site "Bangalore"]
[Date "2024.01.21"]
[Round "6.19"]
[White "Moksh Amit Doshi"]
[Black "Nitish Belurkar"]
[Result "0-1"]
[ECO "D38"]
[WhiteElo "2355"]
[BlackElo "2435"]
[Annotator "RC"]
[PlyCount "66"]
[EventDate "2024.01.20"]
[EventType "swiss"]
[EventCountry "IND"]
[SourceTitle "playchess.com"]
[Source "ChessBase"]
[SourceQuality "1"]
[TimeControl "5400+30"]

1. d4 {[%emt 0:02:15]} Nf6 {[%emt 0:00:05]} 2. c4 {[%emt 0:00:09]} e6 {[%emt 0:00:04]} 3. Nf3 {[%emt 0:00:40]} d5 {[%emt 0:00:06]} 4. Nc3 {[%emt 0:00:10]} Bb4 {[%emt 0:00:07]} 5. cxd5 {[%emt 0:00:55]} exd5 {[%emt 0:00:06]} 6. Bf4 {[%emt 0:00:09]} c5 {[%emt 0:05:58]} 7. g3 {[%emt 0:00:31]} Ne4 {[%emt 0:06:32]} 8. Rc1 {[%emt 0:02:17]} Qa5 {[%emt 0:03:01]} 9. Bg2 {[%emt 0:08:08]} Nc6 {[%emt 0:06:26]} 10. O-O {[%emt 0:04:52]} Bxc3 {[%emt 0:01:19]} 11. bxc3 {[%emt 0:00:17]} Nxc3 {[%emt 0:27:10]} 12. Qd3 {[%emt 0:19:53]} cxd4 {[%emt 0:00:00]} 13. Rfe1 {[%emt 0:04:06]} Ne4 {[%emt 0:00:00]} 14. Nxd4 {[%emt 0:01:42]} Nxd4 {[%emt 0:00:00]} 15. Qxd4 {[%emt 0:00:32]} O-O {[%emt 0:00:00]} 16. Be5 {[%emt 0:03:59]} f6 {[%emt 0:00:00]} 17. Bc7 {[%emt 0:17:52]} b6 {[%emt 0:00:00]} 18. f3 {[%emt 0:08:58]} Ng5 {[%emt 0:07:41]} 19. Bd6 {[%emt 0:00:36]} Re8 {[%emt 0:00:46]} 20. a3 {[%emt 0:03:01]} Be6 {[%emt 0:06:58]} 21. h4 {[%emt 0:01:39]} Nf7 {[%emt 0:00:06]} 22. Bb4 {[%emt 0:00:10]} Qa4 {[%emt 0:00:38]} 23. f4 {[%emt 0:02:10]} Rad8 {[%emt 0:07:42]} 24. Rc7 {[%emt 0:01:51]} Nd6 {[%emt 0:02:29]} 25. Rd1 {[%emt 0:02:55]} Nf5 {[%emt 0:05:24]} 26. Qd3 {[%emt 0:02:08]} a5 {[%emt 0:03:27]} 27. Be1 {[%emt 0:01:23]} Ne3 {[%emt 0:00:19]} 28. Rdc1 {[%emt 0:01:26]} Bf5 {[%emt 0:00:16]} 29. Qd2 {[%emt 0:01:31]} Nxg2 {[%emt 0:00:05]} 30. Kxg2 {[%emt 0:00:05]} Qe4+ {[%emt 0:00:12]} 31. Kg1 {[%emt 0:01:19]} Qxe2 {[%emt 0:00:43]} 32. Qxe2 {[%emt 0:00:46]} Rxe2 {[%emt 0:00:02]} 33. Rb7 {[%emt 0:00:09]} d4 {[%emt 0:00:30]} 0-1